Organisation Name,Department where exp. Incurred,Service Category Label,Supplier (Beneficiary),Purpose of Expenditure,Procurement (Merchant) Category,Purchase Date,Settlement Date,Transaction Number,Net Amount (�)
Stockport MBC,Corporate and Support Services,Central Support Costs,"COMP PROGRAMING,DATA PRCSNG,INTGRTD SYS DSGN SRVS",Information and Communications Technology,Information Communication Technology  ,28.06.2021,16.07.2021,GPC06210000001,195.92
Stockport MBC,Corporate and Support Services,Central Support Costs,"COMP PROGRAMING,DATA PRCSNG,INTGRTD SYS DSGN SRVS",Information and Communications Technology,Information Communication Technology  ,24.06.2021,16.07.2021,GPC06210000002,138.64
Stockport MBC,Corporate and Support Services,Central Support Costs,COMPUTER NETWORK/INFORMATION SERVICES,Information and Communications Technology,Information Communication Technology  ,18.06.2021,16.07.2021,GPC06210000003,25.18
Stockport MBC,Corporate and Support Services,Central Support Costs,MISCELLANEOUS AND SPECIALTY RETAIL STORES,Information and Communications Technology,Information Communication Technology  ,17.06.2021,16.07.2021,GPC06210000004,11.99
Stockport MBC,Corporate and Support Services,Central Support Costs,COMPUTER NETWORK/INFORMATION SERVICES,Information and Communications Technology,Information Communication Technology  ,16.06.2021,16.07.2021,GPC06210000005,38.38
Stockport MBC,Corporate and Support Services,Central Support Costs,"COMP PROGRAMING,DATA PRCSNG,INTGRTD SYS DSGN SRVS",Information and Communications Technology,Information Communication Technology  ,14.06.2021,16.07.2021,GPC06210000006,73.00
Stockport MBC,Corporate and Support Services,Central Support Costs,COMPUTER SOFTWARE STORES,Information and Communications Technology,Information Communication Technology  ,13.06.2021,16.07.2021,GPC06210000007,8.77
Stockport MBC,Corporate and Support Services,Central Support Costs,COMPUTER NETWORK/INFORMATION SERVICES,Information and Communications Technology,Information Communication Technology  ,10.06.2021,16.07.2021,GPC06210000008,39.47
Stockport MBC,Corporate and Support Services,Central Support Costs,COMPUTER SOFTWARE STORES,Information and Communications Technology,Information Communication Technology  ,09.06.2021,16.07.2021,GPC06210000009,689.31
Stockport MBC,Corporate and Support Services,Central Support Costs,COMPUTER SOFTWARE STORES,Information and Communications Technology,Information Communication Technology  ,08.06.2021,16.07.2021,GPC06210000010,948.97
Stockport MBC,Corporate and Support Services,Central Support Costs,COMPUTER SOFTWARE STORES,Information and Communications Technology,Information Communication Technology  ,05.06.2021,16.07.2021,GPC06210000011,146.19
Stockport MBC,Corporate and Support Services,Central Support Costs,BUSINESS SERVICES-NOT ELSEWHERE CLASSIFIED,Information and Communications Technology,Information Communication Technology  ,03.06.2021,16.07.2021,GPC06210000012,"1,088.72"
Stockport MBC,Services to People,Childrens & Educational Services,BUSINESS SERVICES-NOT ELSEWHERE CLASSIFIED,Staff Training,Human Resources  ,21.06.2021,16.07.2021,GPC06210000013,50.00
Stockport MBC,Corporate and Support Services,Central Services to the public,MISCELLANEOUS AND SPECIALTY RETAIL STORES,Office Expenses,Stationery    ,16.06.2021,16.07.2021,GPC06210000014,27.96
Stockport MBC,Corporate and Support Services,Central Services to the public,MISCELLANEOUS AND SPECIALTY RETAIL STORES,Office Expenses,Stationery    ,11.06.2021,16.07.2021,GPC06210000015,20.97
Stockport MBC,Corporate and Support Services,Central Services to the public,DIRECT MARKETING-OTHER DIRECT MARKETERS/NOT ELSEW.,Office Expenses,Stationery    ,03.06.2021,16.07.2021,GPC06210000016,11.44
Stockport MBC,Corporate and Support Services,Central Support Costs,ADVERTISING SERVICES,Office Expenses,Facilities & Management Services  ,30.06.2021,16.07.2021,GPC06210000017,193.51
Stockport MBC,Corporate and Support Services,Central Support Costs,"CONSULTING, MANAGEMENT, AND PUBLIC RELATIONS SVCS",Furniture and Equipment,Environmental Services Technical Equipment ,28.06.2021,16.07.2021,GPC06210000018,550.00
Stockport MBC,Corporate and Support Services,Central Support Costs,DIGITAL GOODS AUDIOVISUAL MEDIA,Information and Communications Technology,Information Communication Technology  ,26.06.2021,16.07.2021,GPC06210000019,5.83
Stockport MBC,Corporate and Support Services,Central Support Costs,DIRECT MARKETING-CONTINUITY/SUBSCRIPTION MERCHANTS,Office Expenses,Facilities & Management Services  ,07.06.2021,16.07.2021,GPC06210000020,391.10
Stockport MBC,Services to People,Childrens & Educational Services,"GROCERY STORES, SUPERMARKETS",Catering Supplies,Catering Food & Beverages ,30.06.2021,16.07.2021,GPC06210000021,3.20
Stockport MBC,Services to People,Childrens & Educational Services,"GROCERY STORES, SUPERMARKETS",Catering Supplies,Catering Food & Beverages ,29.06.2021,16.07.2021,GPC06210000022,7.50
Stockport MBC,Services to People,Childrens & Educational Services,"GROCERY STORES, SUPERMARKETS",Catering Supplies,Catering Food & Beverages ,28.06.2021,16.07.2021,GPC06210000023,10.82
Stockport MBC,Services to People,Childrens & Educational Services,"GROCERY STORES, SUPERMARKETS",Catering Supplies,Catering Food & Beverages ,22.06.2021,16.07.2021,GPC06210000024,1.37
Stockport MBC,Services to People,Childrens & Educational Services,"GROCERY STORES, SUPERMARKETS",Catering Supplies,Catering Food & Beverages ,21.06.2021,16.07.2021,GPC06210000025,17.12
Stockport MBC,Services to People,Childrens & Educational Services,"GROCERY STORES, SUPERMARKETS",Catering Supplies,Catering Food & Beverages ,17.06.2021,16.07.2021,GPC06210000026,13.94
Stockport MBC,Services to People,Childrens & Educational Services,"GROCERY STORES, SUPERMARKETS",Catering Supplies,Catering Food & Beverages ,16.06.2021,16.07.2021,GPC06210000027,3.27
Stockport MBC,Services to People,Childrens & Educational Services,"GROCERY STORES, SUPERMARKETS",Catering Supplies,Catering Food & Beverages ,14.06.2021,16.07.2021,GPC06210000028,14.06
Stockport MBC,Services to People,Childrens & Educational Services,"GROCERY STORES, SUPERMARKETS",Catering Supplies,Catering Food & Beverages ,11.06.2021,16.07.2021,GPC06210000029,5.90
Stockport MBC,Services to People,Childrens & Educational Services,FAST FOOD RESTAURANTS,Catering Supplies,Catering Food & Beverages ,10.06.2021,16.07.2021,GPC06210000030,24.93
Stockport MBC,Services to People,Childrens & Educational Services,"GROCERY STORES, SUPERMARKETS",Catering Supplies,Catering Food & Beverages ,09.06.2021,16.07.2021,GPC06210000031,14.50
Stockport MBC,Services to People,Childrens & Educational Services,"GROCERY STORES, SUPERMARKETS",Catering Supplies,Catering Food & Beverages ,08.06.2021,16.07.2021,GPC06210000032,19.40
Stockport MBC,Services to People,Childrens & Educational Services,"GROCERY STORES, SUPERMARKETS",Catering Supplies,Catering Food & Beverages ,07.06.2021,16.07.2021,GPC06210000033,38.51
Stockport MBC,Services to People,Childrens & Educational Services,"OFFICE, SCHOOL SUPPLY, AND STATIONERY STORES",Furniture and Equipment,Environmental Services Technical Equipment ,21.06.2021,16.07.2021,GPC06210000034,254.95
Stockport MBC,Services to People,Childrens & Educational Services,MISCELLANEOUS AND SPECIALTY RETAIL STORES,Furniture and Equipment,Environmental Services Technical Equipment ,11.06.2021,16.07.2021,GPC06210000035,133.34
Stockport MBC,Services to Place,Cultural & Related Services,"ARTIST SUPPLY STORES, CRAFT SHOPS",Furniture and Equipment,Furniture & Soft Furnishings  ,17.06.2021,16.07.2021,GPC06210000036,38.95
Stockport MBC,Services to Place,Cultural & Related Services,MISCELLANEOUS AND SPECIALTY RETAIL STORES,Furniture and Equipment,Furniture & Soft Furnishings  ,11.06.2021,16.07.2021,GPC06210000037,76.47
Stockport MBC,Services to People,Childrens & Educational Services,"ORGANIZATIONS, CHARITABLE AND SOCIAL SERVICES",Staff Training,Human Resources  ,17.06.2021,16.07.2021,GPC06210000038,45.00
Stockport MBC,Services to People,Childrens & Educational Services,PREMIER INN,Publicity and Promotion,Arts & Leisure Services  ,11.06.2021,16.07.2021,GPC06210000039,136.19
Stockport MBC,Services to People,Childrens & Educational Services,ADVERTISING SERVICES,Office Expenses,Facilities & Management Services  ,03.06.2021,16.07.2021,GPC06210000040,187.22
Stockport MBC,Services to People,Childrens & Educational Services,"ORGANIZATIONS, CHARITABLE AND SOCIAL SERVICES",Staff Training,Human Resources  ,21.06.2021,16.07.2021,GPC06210000041,105.00
Stockport MBC,Services to People,Childrens & Educational Services,TELECOM INCL PREPAID/RECURRING PHONE SVCS,Fees and Charges,"Works - Construction, Repair & Maintenance  ",26.06.2021,16.07.2021,GPC06210000042,119.90
Stockport MBC,Services to People,Childrens & Educational Services,"ORGANIZATIONS, CHARITABLE AND SOCIAL SERVICES",Staff Training,Human Resources  ,25.06.2021,16.07.2021,GPC06210000043,120.00
Stockport MBC,Services to People,Childrens & Educational Services,MISCELLANEOUS AND SPECIALTY RETAIL STORES,Furniture and Equipment,Furniture & Soft Furnishings  ,20.06.2021,16.07.2021,GPC06210000044,9.98
Stockport MBC,Services to People,Childrens & Educational Services,COMPUTER SOFTWARE STORES,Furniture and Equipment,Furniture & Soft Furnishings  ,15.06.2021,16.07.2021,GPC06210000045,24.00
Stockport MBC,Services to People,Childrens & Educational Services,DIRECT MARKETING-OTHER DIRECT MARKETERS/NOT ELSEW.,Furniture and Equipment,Furniture & Soft Furnishings  ,14.06.2021,16.07.2021,GPC06210000046,35.53
Stockport MBC,Services to People,Childrens & Educational Services,DIRECT MARKETING-CONTINUITY/SUBSCRIPTION MERCHANTS,Furniture and Equipment,Furniture & Soft Furnishings  ,13.06.2021,16.07.2021,GPC06210000047,7.99
Stockport MBC,Services to People,Childrens & Educational Services,DIRECT MARKETING-OTHER DIRECT MARKETERS/NOT ELSEW.,Furniture and Equipment,Furniture & Soft Furnishings  ,07.06.2021,16.07.2021,GPC06210000048,32.39
Stockport MBC,Services to People,Childrens & Educational Services,MISCELLANEOUS AND SPECIALTY RETAIL STORES,Furniture and Equipment,Environmental Services Technical Equipment ,30.06.2021,16.07.2021,GPC06210000049,114.80
Stockport MBC,Services to People,Childrens & Educational Services,"GROCERY STORES, SUPERMARKETS",Catering Supplies,Catering Food & Beverages ,28.06.2021,16.07.2021,GPC06210000050,57.30
Stockport MBC,Services to People,Childrens & Educational Services,"EATING PLACES, RESTAURANTS",Fees and Charges,Education  ,24.06.2021,16.07.2021,GPC06210000051,13.00
Stockport MBC,Services to People,Childrens & Educational Services,"GROCERY STORES, SUPERMARKETS",Catering Supplies,Catering Food & Beverages ,24.06.2021,16.07.2021,GPC06210000052,10.43
Stockport MBC,Services to People,Childrens & Educational Services,GOVERNMENT SERVICES-NOT ELSEWHERE CLASSIFIED,Furniture and Equipment,Environmental Services Technical Equipment ,21.06.2021,16.07.2021,GPC06210000053,40.00
Stockport MBC,Services to People,Childrens & Educational Services,"GROCERY STORES, SUPERMARKETS",Catering Supplies,Catering Food & Beverages ,21.06.2021,16.07.2021,GPC06210000054,22.88
Stockport MBC,Services to People,Childrens & Educational Services,"EATING PLACES, RESTAURANTS",Fees and Charges,Education  ,17.06.2021,16.07.2021,GPC06210000055,14.80
Stockport MBC,Services to People,Childrens & Educational Services,"GROCERY STORES, SUPERMARKETS",Catering Supplies,Catering Food & Beverages ,17.06.2021,16.07.2021,GPC06210000056,21.38
Stockport MBC,Services to People,Childrens & Educational Services,POSTAL SERVICES-GOVERNMENT ONLY,Office Expenses,Mail Services�  ,16.06.2021,16.07.2021,GPC06210000057,132.00
Stockport MBC,Services to People,Childrens & Educational Services,"GROCERY STORES, SUPERMARKETS",Catering Supplies,Catering Food & Beverages ,14.06.2021,16.07.2021,GPC06210000058,23.11
Stockport MBC,Services to People,Childrens & Educational Services,"GROCERY STORES, SUPERMARKETS",Catering Supplies,Catering Food & Beverages ,08.06.2021,16.07.2021,GPC06210000059,4.40
Stockport MBC,Services to People,Childrens & Educational Services,"GROCERY STORES, SUPERMARKETS",Furniture and Equipment,Environmental Services Technical Equipment ,08.06.2021,16.07.2021,GPC06210000060,4.11
Stockport MBC,Services to People,Childrens & Educational Services,"GROCERY STORES, SUPERMARKETS",Catering Supplies,Catering Food & Beverages ,07.06.2021,16.07.2021,GPC06210000061,3.25
Stockport MBC,Services to People,Childrens & Educational Services,"GROCERY STORES, SUPERMARKETS",Catering Supplies,Catering Food & Beverages ,07.06.2021,16.07.2021,GPC06210000062,12.97
Stockport MBC,Services to People,Childrens & Educational Services,"GROCERY STORES, SUPERMARKETS",Catering Supplies,Catering Food & Beverages ,07.06.2021,16.07.2021,GPC06210000063,37.93
Stockport MBC,Services to People,Childrens & Educational Services,MISCELLANEOUS AND SPECIALTY RETAIL STORES,Furniture and Equipment,Environmental Services Technical Equipment ,01.07.2021,16.07.2021,GPC06210000064,16.62
Stockport MBC,Services to People,Childrens & Educational Services,MISCELLANEOUS AND SPECIALTY RETAIL STORES,Furniture and Equipment,Environmental Services Technical Equipment ,01.07.2021,16.07.2021,GPC06210000065,169.20
Stockport MBC,Services to People,Childrens & Educational Services,MISCELLANEOUS AND SPECIALTY RETAIL STORES,Furniture and Equipment,Environmental Services Technical Equipment ,01.07.2021,16.07.2021,GPC06210000066,9.00
Stockport MBC,Corporate and Support Services,Corporate & Democratic Core,"CONSULTING, MANAGEMENT, AND PUBLIC RELATIONS SVCS",Staff Training,Human Resources  ,29.06.2021,16.07.2021,GPC06210000067,228.00
Stockport MBC,Corporate and Support Services,Corporate & Democratic Core,AUTOMOBILE RENTAL AGENCY-NOT ELSEWHERE CLASSIFIED,Leasing /Transport Hire,Vehicle Management Leasing ,27.06.2021,16.07.2021,GPC06210000068,-500.00
Stockport MBC,Corporate and Support Services,Corporate & Democratic Core,AUTOMOBILE PARKING LOTS AND GARAGES,Leasing /Transport Hire,Vehicle Management Leasing ,23.06.2021,16.07.2021,GPC06210000069,7.50
Stockport MBC,Corporate and Support Services,Corporate & Democratic Core,AUTOMOBILE RENTAL AGENCY-NOT ELSEWHERE CLASSIFIED,Leasing /Transport Hire,Vehicle Management Leasing ,23.06.2021,16.07.2021,GPC06210000070,645.13
Stockport MBC,Corporate and Support Services,Corporate & Democratic Core,MISCELLANEOUS AND SPECIALTY RETAIL STORES,Furniture and Equipment,Environmental Services Technical Equipment ,23.06.2021,16.07.2021,GPC06210000071,11.99
Stockport MBC,Corporate and Support Services,Central Services to the public,MISCELLANEOUS AND SPECIALTY RETAIL STORES,Office Expenses,Stationery    ,23.06.2021,16.07.2021,GPC06210000072,62.70
Stockport MBC,Corporate and Support Services,Central Support Costs,DIGITAL GOODS MULTI CATEGORY,Information and Communications Technology,Information Communication Technology  ,16.06.2021,16.07.2021,GPC06210000073,48.42
Stockport MBC,Services to People,Adult Social Care,DEPARTMENT STORES,Furniture and Equipment,Environmental Services Technical Equipment ,28.06.2021,16.07.2021,GPC06210000074,29.72
Stockport MBC,Services to People,Adult Social Care,DEPARTMENT STORES,Furniture and Equipment,Environmental Services Technical Equipment ,15.06.2021,16.07.2021,GPC06210000075,39.99
Stockport MBC,Services to People,Adult Social Care,DEPARTMENT STORES,Furniture and Equipment,Environmental Services Technical Equipment ,02.06.2021,16.07.2021,GPC06210000076,4.79
Stockport MBC,Services to People,Adult Social Care,"GROCERY STORES, SUPERMARKETS",Catering Supplies,Catering Food & Beverages ,18.06.2021,16.07.2021,GPC06210000077,66.92
Stockport MBC,Services to People,Adult Social Care,"GROCERY STORES, SUPERMARKETS",Catering Supplies,Catering Food & Beverages ,18.06.2021,16.07.2021,GPC06210000078,-0.29
Stockport MBC,Services to People,Adult Social Care,"GROCERY STORES, SUPERMARKETS",Catering Supplies,Catering Food & Beverages ,11.06.2021,16.07.2021,GPC06210000079,-1.75
Stockport MBC,Services to People,Adult Social Care,"GROCERY STORES, SUPERMARKETS",Catering Supplies,Catering Food & Beverages ,11.06.2021,16.07.2021,GPC06210000080,93.30
Stockport MBC,Services to People,Adult Social Care,MISCELLANEOUS AND SPECIALTY RETAIL STORES,Furniture and Equipment,Environmental Services Technical Equipment ,10.06.2021,16.07.2021,GPC06210000081,5.95
Stockport MBC,Services to People,Adult Social Care,MISCELLANEOUS AND SPECIALTY RETAIL STORES,Furniture and Equipment,Environmental Services Technical Equipment ,09.06.2021,16.07.2021,GPC06210000082,5.69
Stockport MBC,Services to People,Adult Social Care,"GROCERY STORES, SUPERMARKETS",Catering Supplies,Catering Food & Beverages ,04.06.2021,16.07.2021,GPC06210000083,76.39
Stockport MBC,Services to People,Childrens & Educational Services,CATERERS,Furniture and Equipment,Furniture & Soft Furnishings  ,23.06.2021,16.07.2021,GPC06210000084,122.93
Stockport MBC,Services to People,Childrens & Educational Services,DIRECT MARKETING-CONTINUITY/SUBSCRIPTION MERCHANTS,Office Expenses,Stationery    ,18.06.2021,16.07.2021,GPC06210000085,7.99
Stockport MBC,Services to People,Childrens & Educational Services,MISCELLANEOUS AND SPECIALTY RETAIL STORES,Furniture and Equipment,Furniture & Soft Furnishings  ,18.06.2021,16.07.2021,GPC06210000086,94.79
Stockport MBC,Services to People,Childrens & Educational Services,"COLLEGES, UNIV, PRO SCHOOLS, JUNIOR COLLEGES",Staff Training,Human Resources  ,14.06.2021,16.07.2021,GPC06210000087,30.00
Stockport MBC,Services to People,Childrens & Educational Services,"ORGANIZATIONS, CHARITABLE AND SOCIAL SERVICES",Furniture and Equipment,Environmental Services Technical Equipment ,17.06.2021,16.07.2021,GPC06210000088,18.00
Stockport MBC,Services to People,Childrens & Educational Services,DISCOUNT STORES,Furniture and Equipment,Environmental Services Technical Equipment ,14.06.2021,16.07.2021,GPC06210000089,23.99
Stockport MBC,Services to People,Childrens & Educational Services,"CONSULTING, MANAGEMENT, AND PUBLIC RELATIONS SVCS",Fees and Charges,Facilities & Management Services  ,07.06.2021,16.07.2021,GPC06210000090,159.00
Stockport MBC,Services to People,Childrens & Educational Services,MISCELLANEOUS AND SPECIALTY RETAIL STORES,Furniture and Equipment,Environmental Services Technical Equipment ,07.06.2021,16.07.2021,GPC06210000091,9.15
Stockport MBC,Services to People,Childrens & Educational Services,"GROCERY STORES, SUPERMARKETS",Cleaning,Cleaning & Janitorial  ,30.06.2021,16.07.2021,GPC06210000092,4.21
Stockport MBC,Services to People,Childrens & Educational Services,PROFESSIONAL SERVICES-NOT ELSEWHERE CLASSIFIED,Grounds Maintenance,Horticultural  ,30.06.2021,16.07.2021,GPC06210000093,300.00
Stockport MBC,Services to People,Childrens & Educational Services,"GROCERY STORES, SUPERMARKETS",Furniture and Equipment,Furniture & Soft Furnishings  ,23.06.2021,16.07.2021,GPC06210000094,20.00
Stockport MBC,Services to People,Childrens & Educational Services,"GROCERY STORES, SUPERMARKETS",Catering Supplies,Catering Food & Beverages ,23.06.2021,16.07.2021,GPC06210000095,18.01
Stockport MBC,Services to People,Childrens & Educational Services,POSTAL SERVICES-GOVERNMENT ONLY,Office Expenses,Mail Services�  ,22.06.2021,16.07.2021,GPC06210000096,1.83
Stockport MBC,Services to People,Childrens & Educational Services,HOME SUPPLY WAREHOUSE STORES,Furniture and Equipment,Furniture & Soft Furnishings  ,16.06.2021,16.07.2021,GPC06210000097,44.85
Stockport MBC,Services to People,Childrens & Educational Services,"GROCERY STORES, SUPERMARKETS",Cleaning,Cleaning & Janitorial  ,11.06.2021,16.07.2021,GPC06210000098,11.33
Stockport MBC,Services to People,Childrens & Educational Services,"GROCERY STORES, SUPERMARKETS",Cleaning,Cleaning & Janitorial  ,09.06.2021,16.07.2021,GPC06210000099,7.35
Stockport MBC,Services to People,Childrens & Educational Services,POSTAL SERVICES-GOVERNMENT ONLY,Office Expenses,Mail Services�  ,07.06.2021,16.07.2021,GPC06210000100,32.60
Stockport MBC,Services to People,Childrens & Educational Services,MISCELLANEOUS AND SPECIALTY RETAIL STORES,Furniture and Equipment,Furniture & Soft Furnishings  ,01.07.2021,16.07.2021,GPC06210000101,2.09
Stockport MBC,Services to People,Childrens & Educational Services,MISCELLANEOUS AND SPECIALTY RETAIL STORES,Furniture and Equipment,Furniture & Soft Furnishings  ,01.07.2021,16.07.2021,GPC06210000102,20.00
Stockport MBC,Services to People,Childrens & Educational Services,"GROCERY STORES, SUPERMARKETS",Expenses and Allowances,Human Resources Travel & Subsistence ,30.06.2021,16.07.2021,GPC06210000103,30.00
Stockport MBC,Services to People,Childrens & Educational Services,HARDWARE STORES,Office Expenses,Health & Safety�  ,30.06.2021,16.07.2021,GPC06210000104,19.98
Stockport MBC,Services to People,Childrens & Educational Services,POSTAL SERVICES-GOVERNMENT ONLY,Office Expenses,Mail Services�  ,30.06.2021,16.07.2021,GPC06210000105,20.40
Stockport MBC,Services to People,Childrens & Educational Services,MISCELLANEOUS GENERAL MERCHANDISE,Furniture and Equipment,Furniture & Soft Furnishings  ,23.06.2021,16.07.2021,GPC06210000106,8.30
Stockport MBC,Services to People,Childrens & Educational Services,PASSENGER RAILWAYS,Travelling Expenses,Human Resources Travel & Subsistence ,30.06.2021,16.07.2021,GPC06210000107,81.91
Stockport MBC,Services to People,Childrens & Educational Services,"EQUIP, FURNITURE, HOME FURNSHNGS STRS (EXCPT APPL)",Furniture and Equipment,Environmental Services Technical Equipment ,29.06.2021,16.07.2021,GPC06210000108,252.00
Stockport MBC,Services to People,Childrens & Educational Services,HOLIDAY INNS,Care Payments,Social Community Care Supplies & Services  ,29.06.2021,16.07.2021,GPC06210000109,122.00
Stockport MBC,Services to People,Childrens & Educational Services,HOLIDAY INNS,Care Payments,Social Community Care Supplies & Services  ,29.06.2021,16.07.2021,GPC06210000110,429.00
Stockport MBC,Services to People,Childrens & Educational Services,TELECOM INCL PREPAID/RECURRING PHONE SVCS,Furniture and Equipment,Furniture & Soft Furnishings  ,26.06.2021,16.07.2021,GPC06210000111,14.39
Stockport MBC,Services to People,Childrens & Educational Services,"LODGING-HOTELS,MOTELS,RESORTS-NOT CLASSIFIED",Expenses and Allowances,Catering  ,25.06.2021,16.07.2021,GPC06210000112,98.10
Stockport MBC,Services to People,Childrens & Educational Services,PASSENGER RAILWAYS,Travelling Expenses,Human Resources Travel & Subsistence ,25.06.2021,16.07.2021,GPC06210000113,16.13
Stockport MBC,Services to People,Childrens & Educational Services,PASSENGER RAILWAYS,Travelling Expenses,Human Resources Travel & Subsistence ,23.06.2021,16.07.2021,GPC06210000114,34.60
Stockport MBC,Services to People,Childrens & Educational Services,PASSENGER RAILWAYS,Travelling Expenses,Human Resources Travel & Subsistence ,23.06.2021,16.07.2021,GPC06210000115,17.65
Stockport MBC,Services to People,Childrens & Educational Services,MISCELLANEOUS AND SPECIALTY RETAIL STORES,Furniture and Equipment,Environmental Services Technical Equipment ,23.06.2021,16.07.2021,GPC06210000116,399.75
Stockport MBC,Services to People,Childrens & Educational Services,PREMIER INN,Care Payments,Social Community Care Supplies & Services  ,22.06.2021,16.07.2021,GPC06210000117,76.48
Stockport MBC,Services to People,Childrens & Educational Services,HOLIDAY INNS,Care Payments,Social Community Care Supplies & Services  ,22.06.2021,16.07.2021,GPC06210000118,439.00
Stockport MBC,Services to People,Childrens & Educational Services,HOLIDAY INNS,Care Payments,Social Community Care Supplies & Services  ,22.06.2021,16.07.2021,GPC06210000119,413.30
Stockport MBC,Services to People,Childrens & Educational Services,DISCOUNT STORES,Furniture and Equipment,Environmental Services Technical Equipment ,18.06.2021,16.07.2021,GPC06210000120,93.92
Stockport MBC,Services to People,Childrens & Educational Services,PASSENGER RAILWAYS,Travelling Expenses,Human Resources Travel & Subsistence ,18.06.2021,16.07.2021,GPC06210000121,34.60
Stockport MBC,Services to People,Childrens & Educational Services,PASSENGER RAILWAYS,Travelling Expenses,Human Resources Travel & Subsistence ,18.06.2021,16.07.2021,GPC06210000122,16.13
Stockport MBC,Services to People,Childrens & Educational Services,PASSENGER RAILWAYS,Travelling Expenses,Human Resources Travel & Subsistence ,16.06.2021,16.07.2021,GPC06210000123,17.65
Stockport MBC,Services to People,Childrens & Educational Services,PASSENGER RAILWAYS,Travelling Expenses,Human Resources Travel & Subsistence ,16.06.2021,16.07.2021,GPC06210000124,34.60
Stockport MBC,Services to People,Childrens & Educational Services,HOLIDAY INNS,Care Payments,Social Community Care Supplies & Services  ,15.06.2021,16.07.2021,GPC06210000125,426.00
Stockport MBC,Services to People,Childrens & Educational Services,PASSENGER RAILWAYS,Travelling Expenses,Human Resources Travel & Subsistence ,11.06.2021,16.07.2021,GPC06210000126,34.60
Stockport MBC,Services to People,Childrens & Educational Services,PREMIER INN,Care Payments,Social Community Care Supplies & Services  ,11.06.2021,16.07.2021,GPC06210000127,35.00
Stockport MBC,Services to People,Childrens & Educational Services,PASSENGER RAILWAYS,Travelling Expenses,Human Resources Travel & Subsistence ,11.06.2021,16.07.2021,GPC06210000128,21.16
Stockport MBC,Services to People,Childrens & Educational Services,PREMIER INN,Care Payments,Social Community Care Supplies & Services  ,10.06.2021,16.07.2021,GPC06210000129,175.50
Stockport MBC,Services to People,Childrens & Educational Services,TRAVELODGE,Expenses and Allowances,Catering  ,10.06.2021,16.07.2021,GPC06210000130,86.68
Stockport MBC,Services to People,Childrens & Educational Services,PREMIER INN,Care Payments,Social Community Care Supplies & Services  ,09.06.2021,16.07.2021,GPC06210000131,53.00
Stockport MBC,Services to People,Childrens & Educational Services,PASSENGER RAILWAYS,Travelling Expenses,Human Resources Travel & Subsistence ,09.06.2021,16.07.2021,GPC06210000132,16.13
Stockport MBC,Services to People,Childrens & Educational Services,PASSENGER RAILWAYS,Travelling Expenses,Human Resources Travel & Subsistence ,09.06.2021,16.07.2021,GPC06210000133,34.60
Stockport MBC,Services to People,Childrens & Educational Services,PASSENGER RAILWAYS,Travelling Expenses,Human Resources Travel & Subsistence ,08.06.2021,16.07.2021,GPC06210000134,16.64
Stockport MBC,Services to People,Childrens & Educational Services,HOLIDAY INNS,Care Payments,Social Community Care Supplies & Services  ,08.06.2021,16.07.2021,GPC06210000135,481.00
Stockport MBC,Services to People,Childrens & Educational Services,PASSENGER RAILWAYS,Travelling Expenses,Human Resources Travel & Subsistence ,07.06.2021,16.07.2021,GPC06210000136,34.60
Stockport MBC,Services to People,Childrens & Educational Services,PASSENGER RAILWAYS,Travelling Expenses,Human Resources Travel & Subsistence ,04.06.2021,16.07.2021,GPC06210000137,17.65
Stockport MBC,Services to People,Childrens & Educational Services,PASSENGER RAILWAYS,Travelling Expenses,Human Resources Travel & Subsistence ,02.06.2021,16.07.2021,GPC06210000138,17.65
Stockport MBC,Services to People,Childrens & Educational Services,LIMOUSINES AND TAXICABS,Care Payments,Social Community Care Supplies & Services  ,30.06.2021,16.07.2021,GPC06210000139,10.00
Stockport MBC,Services to People,Childrens & Educational Services,LIMOUSINES AND TAXICABS,Care Payments,Social Community Care Supplies & Services  ,30.06.2021,16.07.2021,GPC06210000140,10.00
Stockport MBC,Services to People,Childrens & Educational Services,COMPUTER NETWORK/INFORMATION SERVICES,Information and Communications Technology,Information Communication Technology  ,27.06.2021,16.07.2021,GPC06210000141,12.00
Stockport MBC,Services to People,Childrens & Educational Services,DISCOUNT STORES,Care Payments,Social Community Care Supplies & Services  ,25.06.2021,16.07.2021,GPC06210000142,211.67
Stockport MBC,Services to People,Childrens & Educational Services,LIMOUSINES AND TAXICABS,Care Payments,Social Community Care Supplies & Services  ,22.06.2021,16.07.2021,GPC06210000143,6.50
Stockport MBC,Services to People,Childrens & Educational Services,LIMOUSINES AND TAXICABS,Care Payments,Social Community Care Supplies & Services  ,22.06.2021,16.07.2021,GPC06210000144,6.50
Stockport MBC,Services to People,Childrens & Educational Services,TRAVELODGE,Care Payments,Social Community Care Supplies & Services  ,18.06.2021,16.07.2021,GPC06210000145,61.99
Stockport MBC,Services to People,Childrens & Educational Services,GOVERNMENT SERVICES-NOT ELSEWHERE CLASSIFIED,Care Payments,Social Community Care Supplies & Services  ,16.06.2021,16.07.2021,GPC06210000146,602.16
Stockport MBC,Services to People,Childrens & Educational Services,GOVERNMENT SERVICES-NOT ELSEWHERE CLASSIFIED,Care Payments,Social Community Care Supplies & Services  ,16.06.2021,16.07.2021,GPC06210000147,802.88
Stockport MBC,Services to People,Childrens & Educational Services,TELECOM INCL PREPAID/RECURRING PHONE SVCS,Information and Communications Technology,Information Communication Technology  ,11.06.2021,16.07.2021,GPC06210000148,11.99
Stockport MBC,Services to People,Childrens & Educational Services,BUSINESS SERVICES-NOT ELSEWHERE CLASSIFIED,Expenses and Allowances,Human Resources Training & Conferences ,16.06.2021,16.07.2021,GPC06210000149,214.80
Stockport MBC,Services to People,Childrens & Educational Services,"GROCERY STORES, SUPERMARKETS",Catering Supplies,Catering Food & Beverages ,28.06.2021,16.07.2021,GPC06210000150,45.10
Stockport MBC,Services to People,Childrens & Educational Services,"GROCERY STORES, SUPERMARKETS",Catering Supplies,Catering Food & Beverages ,24.06.2021,16.07.2021,GPC06210000151,12.72
Stockport MBC,Services to People,Childrens & Educational Services,"GROCERY STORES, SUPERMARKETS",Catering Supplies,Catering Food & Beverages ,21.06.2021,16.07.2021,GPC06210000152,51.82
Stockport MBC,Services to People,Childrens & Educational Services,"GROCERY STORES, SUPERMARKETS",Furniture and Equipment,Environmental Services Technical Equipment ,17.06.2021,16.07.2021,GPC06210000153,2.88
Stockport MBC,Services to People,Childrens & Educational Services,"GROCERY STORES, SUPERMARKETS",Catering Supplies,Catering Food & Beverages ,14.06.2021,16.07.2021,GPC06210000154,74.41
Stockport MBC,Services to People,Childrens & Educational Services,"GROCERY STORES, SUPERMARKETS",Catering Supplies,Catering Food & Beverages ,07.06.2021,16.07.2021,GPC06210000155,23.17
Stockport MBC,Services to People,Childrens & Educational Services,MISCELLANEOUS AND SPECIALTY RETAIL STORES,Care Payments,Social Community Care Supplies & Services  ,28.06.2021,16.07.2021,GPC06210000156,69.99
Stockport MBC,Services to People,Childrens & Educational Services,PASSENGER RAILWAYS,Care Payments,Social Community Care Supplies & Services  ,17.06.2021,16.07.2021,GPC06210000157,142.30
Stockport MBC,Services to People,Childrens & Educational Services,"PHOTO DEVELOPING, PHOTOFINISHING LABORATORIES",Care Payments,Social Community Care Supplies & Services  ,17.06.2021,16.07.2021,GPC06210000158,6.00
Stockport MBC,Services to People,Childrens & Educational Services,"GROCERY STORES, SUPERMARKETS",Catering Supplies,Catering Food & Beverages ,14.06.2021,16.07.2021,GPC06210000159,72.10
Stockport MBC,Services to People,Childrens & Educational Services,"BAR,LOUNGE,DISCO,NIGHTCLUB,TAVERN-ALCOHOLIC DRINKS",Publicity and Promotion,Arts & Leisure Services  ,13.06.2021,16.07.2021,GPC06210000160,35.05
Stockport MBC,Services to People,Childrens & Educational Services,RECREATION SERVICES (NOT ELSEWHERE CLASSIFIED),Publicity and Promotion,Arts & Leisure Services  ,13.06.2021,16.07.2021,GPC06210000161,40.00
Stockport MBC,Services to People,Childrens & Educational Services,"GROCERY STORES, SUPERMARKETS",Catering Supplies,Catering Food & Beverages ,12.06.2021,16.07.2021,GPC06210000162,70.48
Stockport MBC,Services to People,Childrens & Educational Services,FAST FOOD RESTAURANTS,Publicity and Promotion,Arts & Leisure Services  ,12.06.2021,16.07.2021,GPC06210000163,5.00
Stockport MBC,Services to People,Childrens & Educational Services,TOURIST ATTRACTIONS AND EXHIBITS,Publicity and Promotion,Arts & Leisure Services  ,12.06.2021,16.07.2021,GPC06210000164,15.00
Stockport MBC,Services to People,Childrens & Educational Services,"EATING PLACES, RESTAURANTS",Publicity and Promotion,Arts & Leisure Services  ,12.06.2021,16.07.2021,GPC06210000165,33.40
Stockport MBC,Services to People,Childrens & Educational Services,AUTOMOBILE PARKING LOTS AND GARAGES,Publicity and Promotion,Arts & Leisure Services  ,12.06.2021,16.07.2021,GPC06210000166,6.00
Stockport MBC,Services to People,Childrens & Educational Services,FAST FOOD RESTAURANTS,Publicity and Promotion,Arts & Leisure Services  ,12.06.2021,16.07.2021,GPC06210000167,3.50
Stockport MBC,Services to People,Childrens & Educational Services,"GROCERY STORES, SUPERMARKETS",Publicity and Promotion,Arts & Leisure Services  ,12.06.2021,16.07.2021,GPC06210000168,25.51
Stockport MBC,Services to People,Childrens & Educational Services,"LODGING-HOTELS,MOTELS,RESORTS-NOT CLASSIFIED",Rents,Financial Services Rents ,12.06.2021,16.07.2021,GPC06210000169,-145.00
Stockport MBC,Services to People,Childrens & Educational Services,"EATING PLACES, RESTAURANTS",Publicity and Promotion,Arts & Leisure Services  ,11.06.2021,16.07.2021,GPC06210000170,24.50
Stockport MBC,Services to People,Childrens & Educational Services,"LODGING-HOTELS,MOTELS,RESORTS-NOT CLASSIFIED",Rents,Financial Services Rents ,11.06.2021,16.07.2021,GPC06210000171,678.26
Stockport MBC,Services to People,Childrens & Educational Services,"CABLE, SATELLITE, OTHER PAY TELEVISION, RADIO SVCS",Fees and Charges,Financial Services  ,10.06.2021,16.07.2021,GPC06210000172,13.99
Stockport MBC,Services to People,Childrens & Educational Services,"CABLE, SATELLITE, OTHER PAY TELEVISION, RADIO SVCS",Fees and Charges,Financial Services  ,03.06.2021,16.07.2021,GPC06210000173,5.99
Stockport MBC,Services to People,Childrens & Educational Services,MISCELLANEOUS AND SPECIALTY RETAIL STORES,Office Expenses,Stationery    ,16.06.2021,16.07.2021,GPC06210000174,44.80
Stockport MBC,Services to People,Childrens & Educational Services,MISCELLANEOUS AND SPECIALTY RETAIL STORES,Office Expenses,Stationery    ,16.06.2021,16.07.2021,GPC06210000175,0.49
Stockport MBC,Services to People,Adult Social Care,BUSINESS SERVICES-NOT ELSEWHERE CLASSIFIED,Expenses and Allowances,Human Resources Training & Conferences ,25.06.2021,16.07.2021,GPC06210000176,429.60
Stockport MBC,Services to People,Childrens & Educational Services,MISCELLANEOUS AND SPECIALTY RETAIL STORES,Furniture and Equipment,Environmental Services Technical Equipment ,30.06.2021,16.07.2021,GPC06210000177,65.40
Stockport MBC,Services to People,Childrens & Educational Services,MISCELLANEOUS AND SPECIALTY RETAIL STORES,Furniture and Equipment,Environmental Services Technical Equipment ,29.06.2021,16.07.2021,GPC06210000178,39.29
Stockport MBC,Services to People,Childrens & Educational Services,MISCELLANEOUS AND SPECIALTY RETAIL STORES,Furniture and Equipment,Environmental Services Technical Equipment ,24.06.2021,16.07.2021,GPC06210000179,17.58
Stockport MBC,Services to People,Childrens & Educational Services,MISCELLANEOUS AND SPECIALTY RETAIL STORES,Furniture and Equipment,Environmental Services Technical Equipment ,24.06.2021,16.07.2021,GPC06210000180,34.31
Stockport MBC,Services to People,Childrens & Educational Services,MISCELLANEOUS AND SPECIALTY RETAIL STORES,Furniture and Equipment,Environmental Services Technical Equipment ,22.06.2021,16.07.2021,GPC06210000181,32.66
Stockport MBC,Services to People,Childrens & Educational Services,FAST FOOD RESTAURANTS,Catering Supplies,Catering Food & Beverages ,22.06.2021,16.07.2021,GPC06210000182,23.65
Stockport MBC,Services to People,Childrens & Educational Services,MISCELLANEOUS AND SPECIALTY RETAIL STORES,Furniture and Equipment,Environmental Services Technical Equipment ,22.06.2021,16.07.2021,GPC06210000183,61.35
Stockport MBC,Services to People,Childrens & Educational Services,DIRECT MARKETING-OTHER DIRECT MARKETERS/NOT ELSEW.,Furniture and Equipment,Environmental Services Technical Equipment ,18.06.2021,16.07.2021,GPC06210000184,21.00
Stockport MBC,Services to People,Childrens & Educational Services,"CLUBS-CNTRY,MBRSHIP(ATHLET,REC,SPRTS,PRIVATE GOLF",Fees and Charges,Education  ,16.06.2021,16.07.2021,GPC06210000185,21.50
Stockport MBC,Services to People,Childrens & Educational Services,MISCELLANEOUS AND SPECIALTY RETAIL STORES,Furniture and Equipment,Environmental Services Technical Equipment ,15.06.2021,16.07.2021,GPC06210000186,33.50
Stockport MBC,Services to People,Childrens & Educational Services,MISCELLANEOUS AND SPECIALTY RETAIL STORES,Furniture and Equipment,Environmental Services Technical Equipment ,13.06.2021,16.07.2021,GPC06210000187,69.90
Stockport MBC,Services to People,Childrens & Educational Services,MISCELLANEOUS AND SPECIALTY RETAIL STORES,Furniture and Equipment,Environmental Services Technical Equipment ,10.06.2021,16.07.2021,GPC06210000188,20.77
Stockport MBC,Services to People,Childrens & Educational Services,WOMEN'S READY TO WEAR STORES,Fees and Charges,Education  ,10.06.2021,16.07.2021,GPC06210000189,19.00
Stockport MBC,Services to People,Childrens & Educational Services,WOMEN'S READY TO WEAR STORES,Fees and Charges,Education  ,10.06.2021,16.07.2021,GPC06210000190,100.00
Stockport MBC,Services to People,Childrens & Educational Services,"BUILDING MATERIALS, LUMBER STORES",Furniture and Equipment,Environmental Services Technical Equipment ,09.06.2021,16.07.2021,GPC06210000191,10.63
Stockport MBC,Services to People,Childrens & Educational Services,MISCELLANEOUS AND SPECIALTY RETAIL STORES,Furniture and Equipment,Environmental Services Technical Equipment ,07.06.2021,16.07.2021,GPC06210000192,8.90
Stockport MBC,Services to People,Childrens & Educational Services,MISCELLANEOUS AND SPECIALTY RETAIL STORES,Furniture and Equipment,Environmental Services Technical Equipment ,07.06.2021,16.07.2021,GPC06210000193,9.58
Stockport MBC,Services to People,Adult Social Care,COMPUTER SOFTWARE STORES,Information and Communications Technology,Information Communication Technology  ,29.06.2021,16.07.2021,GPC06210000194,"3,600.00"
Stockport MBC,Services to People,Adult Social Care,"GROCERY STORES, SUPERMARKETS",Catering Supplies,Catering Food & Beverages ,23.06.2021,16.07.2021,GPC06210000195,63.36
Stockport MBC,Services to People,Adult Social Care,"GROCERY STORES, SUPERMARKETS",Catering Supplies,Catering Food & Beverages ,11.06.2021,16.07.2021,GPC06210000196,5.00
Stockport MBC,Services to People,Adult Social Care,MISCELLANEOUS GENERAL MERCHANDISE,Catering Supplies,Catering Food & Beverages ,11.06.2021,16.07.2021,GPC06210000197,11.47
Stockport MBC,Services to People,Adult Social Care,"GROCERY STORES, SUPERMARKETS",Catering Supplies,Catering Food & Beverages ,09.06.2021,16.07.2021,GPC06210000198,65.40
Stockport MBC,Services to People,Adult Social Care,HOME SUPPLY WAREHOUSE STORES,Catering Supplies,Catering Food & Beverages ,08.06.2021,16.07.2021,GPC06210000199,32.00
Stockport MBC,Services to People,Childrens & Educational Services,DISCOUNT STORES,Furniture and Equipment,Furniture & Soft Furnishings  ,09.06.2021,16.07.2021,GPC06210000200,83.95
Stockport MBC,Services to People,Childrens & Educational Services,"GROCERY STORES, SUPERMARKETS",Catering Supplies,Catering Food & Beverages ,30.06.2021,16.07.2021,GPC06210000201,9.67
Stockport MBC,Services to People,Childrens & Educational Services,"GROCERY STORES, SUPERMARKETS",Catering Supplies,Catering Food & Beverages ,23.06.2021,16.07.2021,GPC06210000202,19.58
Stockport MBC,Services to People,Childrens & Educational Services,"GROCERY STORES, SUPERMARKETS",Catering Supplies,Catering Food & Beverages ,16.06.2021,16.07.2021,GPC06210000203,5.19
Stockport MBC,Services to People,Childrens & Educational Services,"GROCERY STORES, SUPERMARKETS",Catering Supplies,Catering Food & Beverages ,09.06.2021,16.07.2021,GPC06210000204,3.78
Stockport MBC,Corporate and Support Services,Central Support Costs,ELECTRONIC SALES,Furniture and Equipment,Environmental Services Technical Equipment ,24.06.2021,16.07.2021,GPC06210000205,74.85
Stockport MBC,Corporate and Support Services,Central Support Costs,ELECTRONIC SALES,Furniture and Equipment,Environmental Services Technical Equipment ,21.06.2021,16.07.2021,GPC06210000206,67.00
Stockport MBC,Services to Place,Highways & Transport Services,SPORTING GOODS STORES,Expenses and Allowances,Catering  ,25.06.2021,16.07.2021,GPC06210000207,25.00
Stockport MBC,Services to Place,Highways & Transport Services,SPORTING GOODS STORES,Expenses and Allowances,Catering  ,25.06.2021,16.07.2021,GPC06210000208,50.00
Stockport MBC,Corporate and Support Services,Central Support Costs,"BOOKS,PERIODICALS AND NEWSPAPERS",Library Equipment,Education Library Books ,19.06.2021,16.07.2021,GPC06210000209,489.00
Stockport MBC,Services to Place,Highways & Transport Services,"ORGANIZATIONS, MEMBERSHIP-NOT ELSEWHERE CLASSIFIED",Library Equipment,Education Library Books ,18.06.2021,16.07.2021,GPC06210000210,265.00
Stockport MBC,Services to Place,Highways & Transport Services,"ORGANIZATIONS, MEMBERSHIP-NOT ELSEWHERE CLASSIFIED",Library Equipment,Education Library Books ,18.06.2021,16.07.2021,GPC06210000211,266.00
Stockport MBC,Services to Place,Highways & Transport Services,SCHOOLS & EDUCATIONAL SVC-NOT ELSEWHERE CLASSIFIED,Fees and Charges,UNCLASSIFIED  ,17.06.2021,16.07.2021,GPC06210000212,594.80
Stockport MBC,Services to Place,Highways & Transport Services,"ORGANIZATIONS, MEMBERSHIP-NOT ELSEWHERE CLASSIFIED",Staff Training,Human Resources  ,16.06.2021,16.07.2021,GPC06210000213,113.00
Stockport MBC,Services to Place,Highways & Transport Services,TAX PAYMENTS,Vehicle Excise Duty,Vehicle Management  ,15.06.2021,16.07.2021,GPC06210000214,277.50
Stockport MBC,Services to Place,Highways & Transport Services,"ORGANIZATIONS, CHARITABLE AND SOCIAL SERVICES",Office Expenses,Facilities & Management Services  ,07.06.2021,16.07.2021,GPC06210000215,9.12
Stockport MBC,Services to Place,Highways & Transport Services,"ORGANIZATIONS, CHARITABLE AND SOCIAL SERVICES",Office Expenses,Facilities & Management Services  ,07.06.2021,16.07.2021,GPC06210000216,9.12
